{"text_format":"3","workbook":"xlsx","n_sheets":3,"sheets":["Inicio","Fondos universitarios mensuales","gráfico_del_cálculo"],"not_rendered":{"charts":4,"defined_names":19},"read":"whole","date_system":"1900"}

{"sheet":"Inicio","index":0,"n_rows":8,"n_cols":2,"rows_kept":8}
[null,"INFORMACIÓN SOBRE ESTA PLANTILLA"]
[null,"Use la hoja de cálculo de presupuesto universitario mensual para seguir el flujo de efectivo, ingresos y gastos."]
[null,"Escriba los ingresos y gastos mensuales para calcular el Total de ingresos y gastos."]
[null,"Automáticamente, se calculará el flujo de efectivo y se actualizará el diagrama de flujo de efectivo."]
[null,"Seleccione el control deslizante para obtener los diagramas de flujo de efectivo, ingresos y gastos de un mes y año."]
[null,"Nota: "]
[null,"Se facilitan instrucciones adicionales en la columna A de la hoja de cálculo. Este texto se ha ocultado a propósito. Para eliminar el texto, seleccione la columna A y, a continuación, ELIMINAR. Para mostrar el texto, seleccione la columna A y, a continuación, cambia el color de fuente."]
[null," "]

{"sheet":"Fondos universitarios mensuales","index":1,"n_rows":72,"n_cols":17,"rows_kept":72}
[null,"Fondos universitarios mensuales",{"$nulls":14},{"$f":"\"\"","v":""}]
[{"$nulls":16},""]
[{"$nulls":16},""]
[null,{"$f":"gráfico_del_cálculo!$D$6","v":"enero ingresos:"},null,null,{"$f":"gráfico_del_cálculo!$D$7","v":"enero gastos:"},{"$nulls":7},{"$f":"gráfico_del_cálculo!$D$8","v":"enero flujo de efectivo:"},{"$nulls":3},""]
[null,{"$f":"\" \"&gráfico_del_cálculo!$F$6","v":" $1,225"},null,null,{"$f":"\" \"&gráfico_del_cálculo!$F$7","v":" $1,056"},{"$nulls":7},{"$f":"\" \"&gráfico_del_cálculo!$F$8","v":" $169"},{"$nulls":3},""]
[{"$nulls":16},""]
[{"$nulls":16},""]
[{"$nulls":16},""]
[{"$nulls":16},""]
[{"$nulls":16},""]
[{"$nulls":16},""]
[{"$nulls":16},""]
[{"$nulls":16},""]
[{"$nulls":16},""]
[{"$nulls":16},""]
[{"$nulls":16},""]
[{"$nulls":16},""]
[{"$nulls":16},""]
[{"$nulls":16},""]
[{"$nulls":16},""]
[]
[]
[]
[]
[null,"ENE"]
[{"$nulls":15},{"$f":"PeríodoSeleccionado","v":"ENE "}]
[null,"Efectivo mensual después de gastos",{"$f":"PrimerMes","v":"ENE "},{"$f":"MesSiguiente","v":"FEB "},"MAR ","ABR ","MAY ","JUN ","JUL ","AGO ","SEP ","OCT ","NOV ","DIC ","AÑO  ","AUM. % "]
[null,"Flujo de efectivo",{"$f":"C37-C72","v":169},69,192,199,204,{"v":-771,"d":"-771 "},124,154,{"v":-721,"d":"-721 "},109,34,{"v":-61,"d":"-61 "},{"$f":"SUM(C28:N28)","v":{"v":-299,"d":"-299 "}},{"$f":"INDEX($C28:$O28,,ColumnaDelPeríodoSeleccionado)/INDEX($C$37:$O$37,,ColumnaDelPeríodoSeleccionado)","v":{"v":0.13795918367346938,"d":"13.8%"}}]
[null,"Flujo de efectivo acumulado",{"$f":"SUM($C$28:C$28)","v":169},{"$f":"SUM($C$28:D$28)","v":238},{"$f":"SUM($C$28:E$28)","v":430},{"$f":"SUM($C$28:F$28)","v":629},{"$f":"SUM($C$28:G$28)","v":833},{"$f":"SUM($C$28:H$28)","v":62},{"$f":"SUM($C$28:I$28)","v":186},{"$f":"SUM($C$28:J$28)","v":340},{"$f":"SUM($C$28:K$28)","v":{"v":-381,"d":"-381 "}},{"$f":"SUM($C$28:L$28)","v":{"v":-272,"d":"-272 "}},{"$f":"SUM($C$28:M$28)","v":{"v":-238,"d":"-238 "}},{"$f":"SUM($C$28:N$28)","v":{"v":-299,"d":"-299 "}}]
[]
[null,"INGRESOS MENSUALES",{"$f":"PrimerMes","v":"ENE "},{"$f":"MesSiguiente","v":"FEB "},"MAR ","ABR ","MAY ","JUN ","JUL ","AGO ","SEP ","OCT ","NOV ","DIC ","AÑO  ","AUM. % "]
[null,"Ayudas financieras (subvenciones, becas, préstamos) que le hayan concedido",0,0,750,750,750,750,750,750,750,750,750,750,{"$f":"SUM(C32:N32)","v":{"v":7500,"d":"7,500"}},{"$f":"INDEX($C32:$O32,,ColumnaDelPeríodoSeleccionado)/INDEX($C$37:$O$37,,ColumnaDelPeríodoSeleccionado)","v":{"v":0,"d":"0.0%"}}]
[null,"Sueldos laborales netos",450,450,450,450,450,450,450,450,550,350,350,350,{"v":5200,"d":"5,200"},{"v":0.3673469387755102,"d":"36.7%"}]
[null,"Ayuda financiera de la familia",200,200,{"v":1000,"d":"1,000"},350,350,350,350,350,350,350,350,350,{"v":4550,"d":"4,550"},{"v":0.16326530612244897,"d":"16.3%"}]
[null,"Retiradas de dinero de cuentas de ahorro",500,350,150,0,0,0,0,0,0,0,0,0,{"v":1000,"d":"1,000"},{"v":0.40816326530612246,"d":"40.8%"}]
[null,"Otros (manutención infantil, asistencia pública, donaciones, etc.)",75,75,75,75,75,75,75,75,75,75,75,75,900,{"v":0.061224489795918366,"d":"6.1%"}]
[null,"INGRESOS TOTALES",{"$f":"SUM(C32:C36)","v":{"v":1225,"d":"1,225"}},{"v":1075,"d":"1,075"},{"v":2425,"d":"2,425"},{"v":1625,"d":"1,625"},{"v":1625,"d":"1,625"},{"v":1625,"d":"1,625"},{"v":1625,"d":"1,625"},{"v":1625,"d":"1,625"},{"v":1725,"d":"1,725"},{"v":1525,"d":"1,525"},{"v":1525,"d":"1,525"},{"v":1525,"d":"1,525"},{"v":19150,"d":"19,150"},{"v":1,"d":"100.0%"}]
[]
[null,"GASTOS MENSUALES",{"$f":"PrimerMes","v":"ENE "},{"$f":"MesSiguiente","v":"FEB "},"MAR ","ABR ","MAY ","JUN ","JUL ","AGO ","SEP ","OCT ","NOV ","DIC ","AÑO  ","AUM. % "]
[null,"Alojamiento y comidas",{"$f":"SUM(C41:C43)","v":565},565,565,565,565,565,565,565,565,565,565,565,{"$f":"SUM(C40:N40)","v":{"v":6780,"d":"6,780"}},{"$f":"INDEX($C40:$O40,,ColumnaDelPeríodoSeleccionado)/INDEX($C$72:$O$72,,ColumnaDelPeríodoSeleccionado)","v":{"v":0.5350378787878788,"d":"53.5%"}}]
[null,null,315,315,315,315,315,315,315,315,315,315,315,315,{"$f":"SUM(C41:N41)","v":{"v":3780,"d":"3,780"}},{"$f":"INDEX($C41:$O41,,ColumnaDelPeríodoSeleccionado)/INDEX($C$72:$O$72,,ColumnaDelPeríodoSeleccionado)","v":{"v":0.29829545454545453,"d":"29.8%"}}]
[null,null,200,200,200,200,200,200,200,200,200,200,200,200,{"$f":"SUM(C42:N42)","v":{"v":2400,"d":"2,400"}},{"$f":"INDEX($C42:$O42,,ColumnaDelPeríodoSeleccionado)/INDEX($C$72:$O$72,,ColumnaDelPeríodoSeleccionado)","v":{"v":0.1893939393939394,"d":"18.9%"}}]
[null,null,50,50,50,50,50,50,50,50,50,50,50,50,{"$f":"SUM(C43:N43)","v":600},{"$f":"INDEX($C43:$O43,,ColumnaDelPeríodoSeleccionado)/INDEX($C$72:$O$72,,ColumnaDelPeríodoSeleccionado)","v":{"v":0.04734848484848485,"d":"4.7%"}}]
[]
[null,"Matrícula y tasas",{"$f":"SUM(C46:C47)","v":0},0,750,0,0,650,0,0,650,0,0,0,{"$f":"SUM(C45:N45)","v":{"v":2050,"d":"2,050"}},{"$f":"INDEX($C45:$O45,,ColumnaDelPeríodoSeleccionado)/INDEX($C$72:$O$72,,ColumnaDelPeríodoSeleccionado)","v":{"v":0,"d":"0.0%"}}]
[null,null,0,0,500,0,0,500,0,0,500,0,0,0,{"$f":"SUM(C46:N46)","v":{"v":1500,"d":"1,500"}},{"$f":"INDEX($C46:$O46,,ColumnaDelPeríodoSeleccionado)/INDEX($C$72:$O$72,,ColumnaDelPeríodoSeleccionado)","v":{"v":0,"d":"0.0%"}}]
[null,null,0,0,250,0,0,150,0,0,150,0,0,0,{"$f":"SUM(C47:N47)","v":550},{"$f":"INDEX($C47:$O47,,ColumnaDelPeríodoSeleccionado)/INDEX($C$72:$O$72,,ColumnaDelPeríodoSeleccionado)","v":{"v":0,"d":"0.0%"}}]
[]
[null,"Contabilidad y suministros",{"$f":"SUM(C50:C51)","v":0},0,325,20,20,325,10,10,400,15,15,15,{"$f":"SUM(C49:N49)","v":{"v":1155,"d":"1,155"}},{"$f":"INDEX($C49:$O49,,ColumnaDelPeríodoSeleccionado)/INDEX($C$72:$O$72,,ColumnaDelPeríodoSeleccionado)","v":{"v":0,"d":"0.0%"}}]
[null,null,0,0,225,0,0,275,0,0,325,0,0,0,{"$f":"SUM(C50:N50)","v":825},{"$f":"INDEX($C50:$O50,,ColumnaDelPeríodoSeleccionado)/INDEX($C$72:$O$72,,ColumnaDelPeríodoSeleccionado)","v":{"v":0,"d":"0.0%"}}]
[null,null,0,0,100,20,20,50,10,10,75,15,15,15,{"$f":"SUM(C51:N51)","v":330},{"$f":"INDEX($C51:$O51,,ColumnaDelPeríodoSeleccionado)/INDEX($C$72:$O$72,,ColumnaDelPeríodoSeleccionado)","v":{"v":0,"d":"0.0%"}}]
[]
[null,"Transporte",{"$f":"SUM(C54:C57)","v":224},174,174,219,174,174,274,219,174,174,224,269,{"$f":"SUM(C53:N53)","v":{"v":2473,"d":"2,473"}},{"$f":"INDEX($C53:$O53,,ColumnaDelPeríodoSeleccionado)/INDEX($C$72:$O$72,,ColumnaDelPeríodoSeleccionado)","v":{"v":0.21212121212121213,"d":"21.2%"}}]
[null,null,30,30,30,75,30,30,30,75,30,30,30,75,{"$f":"SUM(C54:N54)","v":495},{"$f":"INDEX($C54:$O54,,ColumnaDelPeríodoSeleccionado)/INDEX($C$72:$O$72,,ColumnaDelPeríodoSeleccionado)","v":{"v":0.028409090909090908,"d":"2.8%"}}]
[null,null,129,129,129,129,129,129,129,129,129,129,129,129,{"$f":"SUM(C55:N55)","v":{"v":1548,"d":"1,548"}},{"$f":"INDEX($C55:$O55,,ColumnaDelPeríodoSeleccionado)/INDEX($C$72:$O$72,,ColumnaDelPeríodoSeleccionado)","v":{"v":0.12215909090909091,"d":"12.2%"}}]
[null,null,15,15,15,15,15,15,15,15,15,15,15,15,{"$f":"SUM(C56:N56)","v":180},{"$f":"INDEX($C56:$O56,,ColumnaDelPeríodoSeleccionado)/INDEX($C$72:$O$72,,ColumnaDelPeríodoSeleccionado)","v":{"v":0.014204545454545454,"d":"1.4%"}}]
[null,null,50,0,0,0,0,0,100,0,0,0,50,50,{"$f":"SUM(C57:N57)","v":250},{"$f":"INDEX($C57:$O57,,ColumnaDelPeríodoSeleccionado)/INDEX($C$72:$O$72,,ColumnaDelPeríodoSeleccionado)","v":{"v":0.04734848484848485,"d":"4.7%"}}]
[]
[null,"Discrecional",{"$f":"SUM(C60:C65)","v":69},69,169,369,419,444,419,419,394,394,419,469,{"$f":"SUM(C59:N59)","v":{"v":4053,"d":"4,053"}},{"$f":"INDEX($C59:$O59,,ColumnaDelPeríodoSeleccionado)/INDEX($C$72:$O$72,,ColumnaDelPeríodoSeleccionado)","v":{"v":0.06534090909090909,"d":"6.5%"}}]
[null,null,0,0,0,50,100,100,100,100,75,75,100,100,800,{"v":0,"d":"0.0%"}]
[null,null,69,69,69,69,69,69,69,69,69,69,69,69,828,{"v":0.06534090909090909,"d":"6.5%"}]
[null,null,0,0,0,0,0,25,0,0,0,0,0,50,75,{"v":0,"d":"0.0%"}]
[null,null,0,0,100,100,100,100,100,100,100,100,100,100,{"v":1000,"d":"1,000"},{"v":0,"d":"0.0%"}]
[null,null,0,0,0,50,50,50,50,50,50,50,50,50,450,{"v":0,"d":"0.0%"}]
[null,null,0,0,0,100,100,100,100,100,100,100,100,100,900,{"v":0,"d":"0.0%"}]
[]
[null,"Otros gastos",{"$f":"SUM(C68:C70)","v":198},{"$f":"SUM(D68:D70)","v":198},250,253,243,238,233,258,263,268,268,268,{"$f":"SUM(C67:N67)","v":{"v":2938,"d":"2,938"}},{"$f":"INDEX($C67:$O67,,ColumnaDelPeríodoSeleccionado)/INDEX($C$72:$O$72,,ColumnaDelPeríodoSeleccionado)","v":{"v":0.1875,"d":"18.8%"}}]
[null,null,123,123,123,123,123,123,123,123,123,123,123,123,{"$f":"SUM(C68:N68)","v":{"v":1476,"d":"1,476"}},{"$f":"INDEX($C68:$O68,,ColumnaDelPeríodoSeleccionado)/INDEX($C$72:$O$72,,ColumnaDelPeríodoSeleccionado)","v":{"v":0.11647727272727272,"d":"11.6%"}}]
[null,null,0,0,52,55,45,40,35,60,65,70,70,70,{"$f":"SUM(C69:N69)","v":562},{"$f":"INDEX($C69:$O69,,ColumnaDelPeríodoSeleccionado)/INDEX($C$72:$O$72,,ColumnaDelPeríodoSeleccionado)","v":{"v":0,"d":"0.0%"}}]
[null,null,75,75,75,75,75,75,75,75,75,75,75,75,{"$f":"SUM(C70:N70)","v":900},{"$f":"INDEX($C70:$O70,,ColumnaDelPeríodoSeleccionado)/INDEX($C$72:$O$72,,ColumnaDelPeríodoSeleccionado)","v":{"v":0.07102272727272728,"d":"7.1%"}}]
[]
[null,"GASTOS TOTALES",{"$f":"SUM(C40,C45,C49,C53,C59,C67)","v":{"v":1056,"d":"1,056"}},{"v":1006,"d":"1,006"},{"v":2233,"d":"2,233"},{"v":1426,"d":"1,426"},{"v":1421,"d":"1,421"},{"v":2396,"d":"2,396"},{"v":1501,"d":"1,501"},{"v":1471,"d":"1,471"},{"v":2446,"d":"2,446"},{"v":1416,"d":"1,416"},{"v":1491,"d":"1,491"},{"v":1586,"d":"1,586"},{"$f":"SUM(C72:N72)","v":{"v":19449,"d":"19,449"}},{"$f":"INDEX($C72:$O72,,ColumnaDelPeríodoSeleccionado)/INDEX($C$72:$O$72,,ColumnaDelPeríodoSeleccionado)","v":{"v":1,"d":"100.0%"}}]

{"sheet":"gráfico_del_cálculo","index":2,"n_rows":23,"n_cols":16,"rows_kept":23,"hidden":true}
["***Esta hoja debe permanecer OCULTA.***"]
[]
[{"$nulls":3},{"$f":"IFERROR(LOWER(TEXT(VALUE(PeríodoSeleccionado&\" 1\"),\"mmmm\")),\"año\")","v":"enero"}]
[]
[{"$nulls":3},"Títulos de gráficos dinámicos"]
[{"$nulls":3},{"$f":"D3&\" ingresos:\"","v":"enero ingresos:"},null,{"$f":"TEXT(INDEX('Fondos universitarios mensuales'!$C$37:$O$37,,ColumnaDelPeríodoSeleccionado),\"$#,###\")","v":"$1,225"}]
[{"$nulls":3},{"$f":"D3&\" gastos:\"","v":"enero gastos:"},null,{"$f":"TEXT(INDEX('Fondos universitarios mensuales'!$C$72:$O$72,,ColumnaDelPeríodoSeleccionado),\"$#,###\")","v":"$1,056"}]
[{"$nulls":3},{"$f":"D3&\" flujo de efectivo:\"","v":"enero flujo de efectivo:"},{"$f":"INDEX('Fondos universitarios mensuales'!C28:O28,ValorDeLaBarraDeDesplazamiento)","v":169},{"$f":"TEXT(E8,\"$#,###\")","v":"$169"}]
[]
[]
[]
[{"$nulls":3},{"$f":"LOWER('Fondos universitarios mensuales'!C27)","v":"ene "},{"$f":"LOWER('Fondos universitarios mensuales'!D27)","v":"feb "},{"$f":"LOWER('Fondos universitarios mensuales'!E27)","v":"mar "},{"$f":"LOWER('Fondos universitarios mensuales'!F27)","v":"abr "},{"$f":"LOWER('Fondos universitarios mensuales'!G27)","v":"may "},{"$f":"LOWER('Fondos universitarios mensuales'!H27)","v":"jun "},{"$f":"LOWER('Fondos universitarios mensuales'!I27)","v":"jul "},{"$f":"LOWER('Fondos universitarios mensuales'!J27)","v":"ago "},{"$f":"LOWER('Fondos universitarios mensuales'!K27)","v":"sep "},{"$f":"LOWER('Fondos universitarios mensuales'!L27)","v":"oct "},{"$f":"LOWER('Fondos universitarios mensuales'!M27)","v":"nov "},{"$f":"LOWER('Fondos universitarios mensuales'!N27)","v":"dic "},{"$f":"LOWER('Fondos universitarios mensuales'!O27)","v":"año  "}]
[null,null,"Valor de la barra de desplazamiento: ",1]
[null,null,"Gráfico de flujo de efectivo: ",{"$f":"IF(PeríodoSeleccionado='Fondos universitarios mensuales'!C$31,IF('Fondos universitarios mensuales'!$C$28:$O$28>=0,'Fondos universitarios mensuales'!$C$28:$O$28,NA()),NA())","v":69},{"$f":"IF(PeríodoSeleccionado='Fondos universitarios mensuales'!D$31,IF('Fondos universitarios mensuales'!$C$28:$O$28>=0,'Fondos universitarios mensuales'!$C$28:$O$28,NA()),NA())","v":{"$error":"#N/A"}},{"$f":"IF(PeríodoSeleccionado='Fondos universitarios mensuales'!E$31,IF('Fondos universitarios mensuales'!$C$28:$O$28>=0,'Fondos universitarios mensuales'!$C$28:$O$28,NA()),NA())","v":{"$error":"#N/A"}},{"$f":"IF(PeríodoSeleccionado='Fondos universitarios mensuales'!F$31,IF('Fondos universitarios mensuales'!$C$28:$O$28>=0,'Fondos universitarios mensuales'!$C$28:$O$28,NA()),NA())","v":{"$error":"#N/A"}},{"$f":"IF(PeríodoSeleccionado='Fondos universitarios mensuales'!G$31,IF('Fondos universitarios mensuales'!$C$28:$O$28>=0,'Fondos universitarios mensuales'!$C$28:$O$28,NA()),NA())","v":{"$error":"#N/A"}},{"$f":"IF(PeríodoSeleccionado='Fondos universitarios mensuales'!H$31,IF('Fondos universitarios mensuales'!$C$28:$O$28>=0,'Fondos universitarios mensuales'!$C$28:$O$28,NA()),NA())","v":{"$error":"#N/A"}},{"$f":"IF(PeríodoSeleccionado='Fondos universitarios mensuales'!I$31,IF('Fondos universitarios mensuales'!$C$28:$O$28>=0,'Fondos universitarios mensuales'!$C$28:$O$28,NA()),NA())","v":{"$error":"#N/A"}},{"$f":"IF(PeríodoSeleccionado='Fondos universitarios mensuales'!J$31,IF('Fondos universitarios mensuales'!$C$28:$O$28>=0,'Fondos universitarios mensuales'!$C$28:$O$28,NA()),NA())","v":{"$error":"#N/A"}},{"$f":"IF(PeríodoSeleccionado='Fondos universitarios mensuales'!K$31,IF('Fondos universitarios mensuales'!$C$28:$O$28>=0,'Fondos universitarios mensuales'!$C$28:$O$28,NA()),NA())","v":{"$error":"#N/A"}},{"$f":"IF(PeríodoSeleccionado='Fondos universitarios mensuales'!L$31,IF('Fondos universitarios mensuales'!$C$28:$O$28>=0,'Fondos universitarios mensuales'!$C$28:$O$28,NA()),NA())","v":{"$error":"#N/A"}},{"$f":"IF(PeríodoSeleccionado='Fondos universitarios mensuales'!M$31,IF('Fondos universitarios mensuales'!$C$28:$O$28>=0,'Fondos universitarios mensuales'!$C$28:$O$28,NA()),NA())","v":{"$error":"#N/A"}},{"$f":"IF(PeríodoSeleccionado='Fondos universitarios mensuales'!N$31,IF('Fondos universitarios mensuales'!$C$28:$O$28>=0,'Fondos universitarios mensuales'!$C$28:$O$28,NA()),NA())","v":{"$error":"#N/A"}},{"$f":"IF(PeríodoSeleccionado='Fondos universitarios mensuales'!O$31,IF('Fondos universitarios mensuales'!$C$28:$O$28>=0,'Fondos universitarios mensuales'!$C$28:$O$28,NA()),NA())","v":{"$error":"#N/A"}}]
[null,null,"Acumulativo: ",{"$f":"IF(PeríodoSeleccionado='Fondos universitarios mensuales'!C$31,IF('Fondos universitarios mensuales'!$C$28:$O$28<0,'Fondos universitarios mensuales'!$C$28:$O$28,NA()),NA())","v":{"$error":"#N/A"}},{"$f":"IF(PeríodoSeleccionado='Fondos universitarios mensuales'!D$31,IF('Fondos universitarios mensuales'!$C$28:$O$28<0,'Fondos universitarios mensuales'!$C$28:$O$28,NA()),NA())","v":{"$error":"#N/A"}},{"$f":"IF(PeríodoSeleccionado='Fondos universitarios mensuales'!E$31,IF('Fondos universitarios mensuales'!$C$28:$O$28<0,'Fondos universitarios mensuales'!$C$28:$O$28,NA()),NA())","v":{"$error":"#N/A"}},{"$f":"IF(PeríodoSeleccionado='Fondos universitarios mensuales'!F$31,IF('Fondos universitarios mensuales'!$C$28:$O$28<0,'Fondos universitarios mensuales'!$C$28:$O$28,NA()),NA())","v":{"$error":"#N/A"}},{"$f":"IF(PeríodoSeleccionado='Fondos universitarios mensuales'!G$31,IF('Fondos universitarios mensuales'!$C$28:$O$28<0,'Fondos universitarios mensuales'!$C$28:$O$28,NA()),NA())","v":{"$error":"#N/A"}},{"$f":"IF(PeríodoSeleccionado='Fondos universitarios mensuales'!H$31,IF('Fondos universitarios mensuales'!$C$28:$O$28<0,'Fondos universitarios mensuales'!$C$28:$O$28,NA()),NA())","v":{"$error":"#N/A"}},{"$f":"IF(PeríodoSeleccionado='Fondos universitarios mensuales'!I$31,IF('Fondos universitarios mensuales'!$C$28:$O$28<0,'Fondos universitarios mensuales'!$C$28:$O$28,NA()),NA())","v":{"$error":"#N/A"}},{"$f":"IF(PeríodoSeleccionado='Fondos universitarios mensuales'!J$31,IF('Fondos universitarios mensuales'!$C$28:$O$28<0,'Fondos universitarios mensuales'!$C$28:$O$28,NA()),NA())","v":{"$error":"#N/A"}},{"$f":"IF(PeríodoSeleccionado='Fondos universitarios mensuales'!K$31,IF('Fondos universitarios mensuales'!$C$28:$O$28<0,'Fondos universitarios mensuales'!$C$28:$O$28,NA()),NA())","v":{"$error":"#N/A"}},{"$f":"IF(PeríodoSeleccionado='Fondos universitarios mensuales'!L$31,IF('Fondos universitarios mensuales'!$C$28:$O$28<0,'Fondos universitarios mensuales'!$C$28:$O$28,NA()),NA())","v":{"$error":"#N/A"}},{"$f":"IF(PeríodoSeleccionado='Fondos universitarios mensuales'!M$31,IF('Fondos universitarios mensuales'!$C$28:$O$28<0,'Fondos universitarios mensuales'!$C$28:$O$28,NA()),NA())","v":{"$error":"#N/A"}},{"$f":"IF(PeríodoSeleccionado='Fondos universitarios mensuales'!N$31,IF('Fondos universitarios mensuales'!$C$28:$O$28<0,'Fondos universitarios mensuales'!$C$28:$O$28,NA()),NA())","v":{"$error":"#N/A"}},{"$f":"IF(PeríodoSeleccionado='Fondos universitarios mensuales'!O$31,IF('Fondos universitarios mensuales'!$C$28:$O$28<0,'Fondos universitarios mensuales'!$C$28:$O$28,NA()),NA())","v":{"$error":"#N/A"}}]
[]
[]
[null,null,"GRÁFICO DE DATOS DE INGRESOS"]
[null,null,"Ayudas financieras (subvenciones, becas, préstamos) que le hayan concedido",{"$f":"'Fondos universitarios mensuales'!P32","v":{"v":0,"d":"0.0%"}}]
[null,null,"Sueldos laborales netos",{"$f":"'Fondos universitarios mensuales'!P33","v":{"v":0.3673469387755102,"d":"36.7%"}}]
[null,null,"Ayuda financiera de la familia",{"$f":"'Fondos universitarios mensuales'!P34","v":{"v":0.16326530612244897,"d":"16.3%"}}]
[null,null,"Retiradas de dinero de cuentas de ahorro",{"$f":"'Fondos universitarios mensuales'!P35","v":{"v":0.40816326530612246,"d":"40.8%"}}]
[null,null,"Otros (manutención infantil, asistencia pública, donaciones, etc.)",{"$f":"'Fondos universitarios mensuales'!P36","v":{"v":0.061224489795918366,"d":"6.1%"}}]